fUSD/lending_fUSD_20240815
["ID","MTS","AMOUNT","RATE_DAILY","PERIOD"]
[334962722,1723680632059,-550.0,0.0001,2]
[334962723,1723680632070,-200.0,0.0001,2]
[334962724,1723680632081,-434.77047017,0.0001,2]
[334962725,1723680632091,-200.0,0.0001,2]
[334962726,1723680632101,-400.58764326,0.00010097,2]
[334962727,1723680632114,-359.16532702,0.00010097,2]
[334962728,1723680632126,-1180.85005427,0.00010097,2]
[334962729,1723680632165,-271.1056769,0.00010097,2]
[334962730,1723680632175,-628.75889526,0.00010713,2]
[334962731,1723680632185,-155.0,0.00010888,2]
[334962732,1723680632194,-15483.10746637,0.00010989,2]
[334962733,1723680632205,-233.53,0.00011,2]
[334962734,1723680632214,-200.0,0.0001137,2]
[334962735,1723680632226,-5403.79429818,0.00011999,2]
[334962736,1723680632236,-153.39,0.00012062,2]
[334962737,1723680632246,-1043.4949,0.00013086,2]
[334962738,1723680632255,-1298.23330788,0.00013086,2]
[334962739,1723680632265,-846.91,0.00013698,2]
[334962740,1723680632274,-17619.68,0.00013698,2]
[334962741,1723680632284,-150.99,0.00013698,2]
[334962742,1723680632293,-5000.0,0.00013698,2]
[334962743,1723680632303,-321.99,0.0001385,2]
[334962744,1723680632312,-150.0,0.0001386,2]
[334962745,1723680632322,-3368.54,0.00013861,2]
[334962746,1723680632332,-150.99,0.00013861,2]
[334962748,1723680632341,-499.99,0.00013861,2]
[334962750,1723680632351,-179.99,0.00013861,2]
[334962752,1723680632360,-499.99,0.00013861,2]
[334962754,1723680632369,-150.0,0.00013955,2]
[334962756,1723680632379,-155.0,0.00013971,2]
[334962758,1723680632388,-382.63,0.00013973,2]
[334962760,1723680632398,-250.0,0.00014079,2]
[334962762,1723680632407,-200.0,0.00014145,2]
[334962764,1723680632417,-507.1,0.00014225,2]
[334962766,1723680632426,-157.70095368,0.00014225,2]
[334962768,1723680632436,-1074.88726643,0.00014225,2]
[334962770,1723680632446,-255.19609183,0.00014225,2]
[334962772,1723680632455,-212.42571562,0.00014234,2]
[334962798,1723680632687,-310.0,0.00014234,2]
[334962800,1723680632698,-380.32741541,0.00014234,2]
[334962802,1723680632708,-328.2488375,0.00014234,2]
[334962803,1723680632723,-347.69615481,0.00014234,2]
[334962805,1723680632733,-218.91005949,0.00014234,2]
[334962806,1723680632742,-10534.15307555,0.00014234,2]
[334962807,1723680632751,-270.62814649,0.00014234,2]
[334962808,1723680632762,-155.0,0.00014234,2]
[334962809,1723680632772,-297.48958849,0.00014234,2]
[334962810,1723680632781,-155.0,0.00014234,2]
[334962811,1723680632791,-155.0,0.00014234,2]
[334962812,1723680632801,-1139.1217656,0.00014234,2]
[334962813,1723680632810,-159.60847032,0.00014234,2]
[334962814,1723680632820,-236.34424982,0.00014234,2]
[334962815,1723680632830,-485.18668102,0.00014235,2]
[334962816,1723680632839,-164.40260801,0.00014235,2]
[334962817,1723680632849,-367.87511774,0.00014235,2]
[334962818,1723680632859,-649.86351287,0.00014235,2]
[334962819,1723680632868,-155.0,0.00014235,2]
[334962820,1723680632878,-365.80180037,0.00014235,2]
[334962821,1723680632888,-197.1386879,0.00014235,2]
[334962822,1723680632898,-432.47832469,0.00014235,2]
[334962823,1723680632908,-155.0,0.00014235,2]
[334962824,1723680632917,-155.0,0.00014235,2]
[334962825,1723680632927,-529.01492508,0.00014235,2]
[334962826,1723680632936,-264.49036255,0.00014235,2]
[334962827,1723680632946,-164.37927092,0.00014235,2]
[334962828,1723680632956,-493.59808335,0.00014235,2]
[334962829,1723680632966,-203.41395605,0.00014235,2]
[334962830,1723680632977,-155.0,0.00014235,2]
[334962831,1723680632987,-211.0133722,0.00014235,2]
[334962832,1723680632996,-155.0,0.00014245,2]
[334962833,1723680633006,-155.0,0.00014245,2]
[334962834,1723680633016,-357.45302385,0.00014245,2]
[334962835,1723680633025,-155.0,0.00014245,2]
[334962836,1723680633035,-9698.32881705,0.00014417,2]
[334962837,1723680633045,-153.39,0.00014451,2]
[334962838,1723680633055,-56144.57264451,0.00014507,2]
[334962839,1723680633065,-155.0,0.00014509,2]
[334962840,1723680633074,-2720.03,0.00014517,2]
[334962841,1723680633084,-5321.19,0.00014517,2]
[334962842,1723680633094,-155.0,0.00014517,2]
[334962843,1723680633103,-3937.46359227,0.00014681,2]
[334962844,1723680633113,-2841.12816254,0.00014782,2]
[334962845,1723680633123,-255.0,0.00014983,2]
[334962846,1723680633132,-676.50109187,0.00015,2]
[334962847,1723680633142,-9698.32881703,0.00015537,2]
[334962848,1723680633152,-500.0,0.0001589,2]
[334962849,1723680633162,-374.45495577,0.00016164,2]
[334962850,1723680633171,-433.0,0.00016202,2]
[334962851,1723680633181,-8500.0,0.00016438,2]
[334962852,1723680633192,-9698.32881703,0.00016658,2]
[334962853,1723680633202,-153.39,0.00016841,2]
[334962854,1723680633212,-279.35,0.00017305,2]
[334962855,1723680633222,-2751.0,0.00017309,2]
[334962856,1723680633233,-400.0,0.00017736,2]
[334962857,1723680633244,-9698.32881703,0.00017778,2]
[334962858,1723680633254,-441.805,0.00018371,2]
[334962859,1723680633264,-2533.93722692,0.000186,2]
[334962860,1723680633275,-9698.32881703,0.00018898,2]
[334962861,1723680633285,-153.39,0.00019231,2]
[334962862,1723680633295,-500.0,0.00019295,2]
[334962863,1723680633305,-647.09591446,0.00019884,2]
[334962864,1723680633315,-400.0,0.00019953,2]
[334962865,1723680633325,-9698.32881703,0.00020019,2]
[334962866,1723680633334,-200.0,0.00020092,2]
[334962867,1723680633345,-740.16,0.00020193,2]
[334962868,1723680633355,-167.58,0.00020193,2]
[334962869,1723680633364,-500.0,0.00020247,2]
[334962870,1723680633374,-500.0,0.00020322,2]
[334962871,1723680633383,-500.0,0.00020407,2]
[334962872,1723680633394,-500.0,0.0002043,2]
[334962873,1723680633404,-382.63,0.00020447,2]
[334962874,1723680633413,-500.0,0.00020718,2]
[334962875,1723680633424,-336.82,0.00020721,2]
[334962876,1723680633434,-500.0,0.00020942,2]
[334962877,1723680633444,-600.0,0.00020943,2]
[334962878,1723680633455,-500.0,0.00021061,2]
[334962879,1723680633465,-9698.32881703,0.00021139,2]
[334962880,1723680633476,-500.0,0.00021165,2]
[334962881,1723680633486,-500.0,0.00021311,2]
[334962882,1723680633497,-500.0,0.0002141,2]
[334962883,1723680633506,-930.97312582,0.00021519,2]
[334962884,1723680633517,-500.0,0.00021539,2]
[334962885,1723680633527,-151.08687338,0.00021567,2]
[334962886,1723680633537,-153.39,0.0002162,2]
[334962887,1723680633547,-500.0,0.0002164,2]
[334962888,1723680633558,-500.0,0.00021794,2]
[334962889,1723680633568,-500.0,0.00021804,2]
[334962890,1723680633579,-500.0,0.00021804,2]
[334962891,1723680633589,-1084.16,0.00021918,2]
[334962892,1723680633599,-150.0,0.00021918,2]
[334962893,1723680633609,-185.20338962,0.00021927,2]
[334962894,1723680633619,-232.17,0.0002199,2]
[334962895,1723680633630,-232.17,0.0002199,2]
[334962896,1723680633639,-232.17,0.0002199,2]
[334962897,1723680633650,-796.47547052,0.00022,2]
[334962898,1723680633660,-500.0,0.00022,2]
[334962899,1723680633669,-500.0,0.00022,2]
[334962900,1723680633679,-500.0,0.00022,2]
[334962901,1723680633694,-500.0,0.00022,2]
[334962902,1723680633704,-500.0,0.00022,2]
[334962903,1723680633714,-500.0,0.00022,2]
[334962904,1723680633728,-500.0,0.00022,2]
[334962905,1723680633739,-500.0,0.00022,2]
[334962906,1723680633749,-500.0,0.00022,2]
[334962907,1723680633759,-500.0,0.00022,2]
[334962908,1723680633770,-500.0,0.00022,2]
[334962909,1723680633779,-500.0,0.00022,2]
[334962910,1723680633789,-500.0,0.00022,2]
[334962911,1723680633799,-500.0,0.00022,2]
[334962912,1723680633809,-500.0,0.00022,2]
[334962913,1723680633819,-500.0,0.00022,2]
[334962914,1723680633829,-500.0,0.00022,2]
[334962915,1723680633838,-500.0,0.00022,2]
[334962916,1723680633848,-500.0,0.00022,2]
[334962917,1723680633858,-500.0,0.00022,2]
[334962918,1723680633868,-500.0,0.00022,2]
[334962919,1723680633879,-500.0,0.00022,2]
[334962920,1723680633889,-500.0,0.00022,2]
[334962921,1723680633898,-500.0,0.00022,2]
[334962922,1723680633908,-500.0,0.00022,2]
[334962923,1723680633918,-500.0,0.00022,2]
[334962924,1723680633928,-500.0,0.00022,2]
[334962925,1723680633938,-500.0,0.00022,2]
[334962926,1723680633948,-500.0,0.00022,2]
[334962927,1723680633958,-500.0,0.00022,2]
[334962928,1723680633969,-500.0,0.00022,2]
[334962929,1723680633979,-500.0,0.00022,2]
[334962930,1723680633989,-500.0,0.00022,2]
[334962931,1723680633998,-500.0,0.00022,2]
[334962932,1723680634008,-500.0,0.00022,2]
[334962933,1723680634018,-500.0,0.00022,2]
[334962934,1723680634027,-500.0,0.00022,2]
[334962935,1723680634037,-500.0,0.00022,2]
[334962936,1723680634047,-500.0,0.00022,2]
[334962937,1723680634057,-500.0,0.00022,2]
[334962938,1723680634067,-500.0,0.00022,2]
[334962939,1723680634076,-500.0,0.00022,2]
[334962940,1723680634085,-500.0,0.00022,2]
[334962941,1723680634095,-500.0,0.00022,2]
[334962942,1723680634104,-500.0,0.00022,2]
[334962943,1723680634114,-500.0,0.00022,2]
[334962944,1723680634124,-500.0,0.00022,2]
[334962945,1723680634134,-500.0,0.00022,2]
[334962946,1723680634144,-500.0,0.00022,2]
[334962947,1723680634153,-500.0,0.00022,2]
[334962948,1723680634163,-500.0,0.00022,2]
[334962949,1723680634173,-500.0,0.00022,2]
[334962950,1723680634183,-500.0,0.00022,2]
[334962951,1723680634193,-500.0,0.00022,2]
[334962952,1723680634203,-500.0,0.00022,2]
[334962953,1723680634212,-500.0,0.00022,2]
[334962954,1723680634224,-500.0,0.00022,2]
[334962955,1723680634234,-500.0,0.00022,2]
[334962956,1723680634244,-500.0,0.00022,2]
[334962957,1723680634254,-500.0,0.00022,2]
[334962958,1723680634264,-500.0,0.00022,2]
[334962959,1723680634275,-500.0,0.00022,2]
[334962960,1723680634284,-500.0,0.00022,2]
[334962961,1723680634294,-500.0,0.00022,2]
[334962962,1723680634303,-500.0,0.00022,2]
[334962963,1723680634313,-500.0,0.00022,2]
[334962964,1723680634323,-500.0,0.00022,2]
[334962965,1723680634333,-500.0,0.00022,2]
[334962966,1723680634343,-500.0,0.00022,2]
[334962967,1723680634353,-500.0,0.00022,2]
[334962968,1723680634363,-500.0,0.00022,2]
[334962969,1723680634372,-500.0,0.00022,2]
[334962970,1723680634382,-500.0,0.00022,2]
[334962971,1723680634392,-500.0,0.00022,2]
[334962972,1723680634402,-500.0,0.00022,2]
[334962973,1723680634411,-500.0,0.00022,2]
[334962974,1723680634420,-500.0,0.00022,2]
[334962975,1723680634429,-174.0,0.00022,2]
[334962976,1723680634439,-150.0,0.00022044,2]
[334962977,1723680634449,-400.0,0.0002217,2]
[334962978,1723680634458,-3000.0,0.000222,2]
[334962979,1723680634471,-9698.32881703,0.00022259,2]
[334962980,1723680634480,-500.0,0.00022322,2]
[334962981,1723680634490,-500.0,0.00022381,2]
[334962982,1723680634500,-151.0,0.00022381,7]
[334962983,1723680634510,-234.458825,0.00022381,7]
[334962984,1723680634520,-500.0,0.00022387,2]
[334962985,1723680634529,-500.0,0.0002246,2]
[334962986,1723680634539,-1000.0,0.00022466,2]
[334962987,1723680634549,-150.0,0.00022495,2]
[334962988,1723680634559,-500.0,0.00022897,2]
[334962989,1723680634569,-150.0,0.00023071,2]
[334962990,1723680634579,-400.0,0.00023116,2]
[334962991,1723680634588,-180.0,0.00023205,2]
[334962992,1723680634598,-161.08938109,0.00023359,2]
[334962993,1723680634608,-9698.32881703,0.0002338,2]
[334962994,1723680634618,-335.364,0.000234,2]
[334962995,1723680634627,-210.3427,0.000234,2]
[334962996,1723680634637,-500.0,0.0002346,2]
[334962997,1723680634647,-226.0,0.000235,2]
[334962998,1723680634658,-358.0,0.000235,2]
[334962999,1723680634668,-421.09,0.00023534,2]
[334963000,1723680634679,-421.09,0.00023534,2]
[334963001,1723680634691,-421.09,0.00023534,2]
[334963002,1723680634700,-600.0,0.00023561,2]
[334963003,1723680634711,-150.0,0.00023648,2]
[334963004,1723680634721,-500.0,0.00023726,2]
[334963005,1723680634731,-171.94382277,0.0002379,2]
[334963006,1723680634741,-22886.37603296,0.00023802,2]
[334963007,1723680634751,-152.14,0.0002388,2]
[334963008,1723680634762,-151.0,0.0002389,7]
[334963009,1723680634772,-151.0,0.0002389,7]
[334963010,1723680634782,-151.0,0.0002389,7]
[334963011,1723680634792,-172.504722,0.0002389,7]
[334963012,1723680634802,-172.504722,0.0002389,7]
[334963013,1723680634812,-151.0,0.0002389,7]
[334963014,1723680634822,-151.0,0.0002389,7]
[334963015,1723680634832,-151.0,0.0002389,7]
[334963016,1723680634841,-151.0,0.0002389,7]
[334963017,1723680634851,-151.0,0.0002389,7]
[334963018,1723680634861,-151.0,0.0002389,7]
[334963019,1723680634871,-151.0,0.0002389,7]
[334963020,1723680634882,-151.0,0.0002389,7]
[334963021,1723680634892,-151.0,0.0002389,7]
[334963022,1723680634902,-151.0,0.0002389,7]
[334963023,1723680634912,-187.104539,0.0002389,7]
[334963024,1723680634922,-195.285792,0.0002389,7]
[334963025,1723680634932,-195.285792,0.0002389,7]
[334963026,1723680634942,-151.0,0.0002389,7]
[334963027,1723680634952,-287.520744,0.0002389,7]
[334963028,1723680634962,-287.520744,0.0002389,7]
[334963029,1723680634975,-151.0,0.0002389,7]
[334963030,1723680634984,-151.0,0.0002389,7]
[334963031,1723680634995,-151.0,0.0002389,7]
[334963032,1723680635005,-151.0,0.0002389,7]
[334963033,1723680635015,-151.0,0.0002389,7]
[334963034,1723680635025,-4159.984091,0.0002389,7]
[334963035,1723680635035,-151.0,0.0002389,7]
[334963036,1723680635046,-151.0,0.0002389,7]
[334963037,1723680635056,-4159.984091,0.0002389,7]
[334963038,1723680635066,-151.0,0.0002389,7]
[334963039,1723680635076,-151.0,0.0002389,7]
[334963040,1723680635086,-151.0,0.0002389,7]
[334963041,1723680635096,-151.0,0.0002389,7]
[334963042,1723680635106,-151.0,0.0002389,7]
[334963043,1723680635116,-151.0,0.0002389,7]
[334963044,1723680635126,-4490.5451,0.0002389,2]
[334963045,1723680635136,-60495.2575,0.0002389,2]
[334963046,1723680635146,-100515.027,0.0002389,2]
[334963047,1723680635156,-151.0,0.0002398,7]
[334963048,1723680635165,-151.0,0.0002398,7]
[334963049,1723680635175,-151.0,0.0002398,7]
[334963050,1723680635184,-151.0,0.0002398,7]
[334963051,1723680635194,-151.0,0.0002398,7]
[334963052,1723680635205,-152.551096,0.0002398,7]
[334963053,1723680635214,-151.0,0.0002398,7]
[334963054,1723680635227,-151.0,0.0002398,7]
[334963055,1723680635237,-892.799795,0.0002398,7]
[334963056,1723680635247,-151.0,0.0002398,7]
[334963057,1723680635258,-151.0,0.0002398,7]
[334963058,1723680635267,-4159.984091,0.0002398,7]
[334963059,1723680635277,-151.0,0.0002398,7]
[334963060,1723680635287,-151.0,0.0002398,7]
[334963061,1723680635296,-4159.984091,0.0002398,7]
[334963062,1723680635306,-151.0,0.0002398,7]
[334963063,1723680635316,-151.0,0.0002398,7]
[334963064,1723680635326,-151.0,0.0002398,7]
[334963065,1723680635336,-151.0,0.0002398,7]
[334963066,1723680635346,-11009.6369944,0.0002398,4]
[334963067,1723680635356,-2201.92739887,0.00023989,4]
[334963068,1723680635365,-151.0,0.0002399,7]
[334963069,1723680635375,-151.0,0.0002399,7]
[334963070,1723680635384,-151.0,0.0002399,7]
[334963071,1723680635394,-151.0,0.0002399,7]
[334963072,1723680635403,-151.0,0.0002399,7]
[334963073,1723680635413,-151.0,0.0002399,7]
[334963074,1723680635423,-151.0,0.0002399,7]
[334963075,1723680635433,-151.0,0.0002399,7]
[334963076,1723680635443,-151.0,0.0002399,7]
[334963077,1723680635452,-151.0,0.0002399,7]
[334963078,1723680635462,-172.504722,0.0002399,7]
[334963079,1723680635471,-172.504722,0.0002399,7]
[334963080,1723680635490,-151.0,0.0002399,7]
[334963081,1723680635499,-151.0,0.0002399,7]
[334963082,1723680635509,-151.0,0.0002399,7]
[334963083,1723680635519,-151.0,0.0002399,7]
[334963084,1723680635529,-151.0,0.0002399,7]
[334963085,1723680635538,-174.759644,0.0002399,7]
[334963086,1723680635547,-151.0,0.0002399,7]
[334963087,1723680635557,-151.0,0.0002399,7]
[334963088,1723680635566,-235.738541,0.0002399,7]
[334963089,1723680635576,-151.0,0.0002399,7]
[334963090,1723680635585,-151.0,0.0002399,7]
[334963091,1723680635594,-195.285792,0.0002399,7]
[334963092,1723680635604,-195.285792,0.0002399,7]
[334963093,1723680635613,-151.0,0.0002399,7]
[334963094,1723680635623,-151.0,0.0002399,7]
[334963095,1723680635632,-195.285792,0.0002399,7]
[334963096,1723680635642,-195.285792,0.0002399,7]
[334963097,1723680635653,-287.520744,0.0002399,7]
[334963098,1723680635663,-287.520744,0.0002399,7]
[334963099,1723680635674,-287.520744,0.0002399,7]
[334963100,1723680635684,-287.520744,0.0002399,7]
[334963101,1723680635697,-151.0,0.0002399,7]
[334963102,1723680635707,-892.799795,0.0002399,7]
[334963103,1723680635716,-151.0,0.0002399,7]
[334963104,1723680635728,-4159.984091,0.0002399,7]
[334963105,1723680635738,-151.0,0.0002399,7]
[334963106,1723680635748,-151.0,0.0002399,7]
[334963107,1723680635760,-4159.984091,0.0002399,7]
[334963108,1723680635770,-244.11688,0.0002399,7]
[334963109,1723680635780,-151.0,0.0002399,7]
[334963110,1723680635790,-151.0,0.0002399,7]
[334963111,1723680635799,-107.76324705,0.0002399,7]
[334963112,1723680635815,-43.86365095,0.0002399,7]
[334963113,1723680635824,-5839.31059905,0.0002399,2]
[334963114,1723680635837,-2081.08675534,0.0002399,2]
[334963211,1723680640082,-3876.08978043,0.00012938,2]
[334963212,1723680640092,-2502.99971682,0.00013086,2]
[334963213,1723680640103,-213.82,0.00013699,2]
[334963214,1723680640113,-600.74422133,0.00014234,2]
[334963215,1723680640124,-892.4875981,0.00014235,2]
[334963216,1723680640133,-4579.9126,0.00014417,2]
[334963217,1723680640145,-193.901816,0.00022466,7]
[334963218,1723680640156,-326.31622443,0.0002388,2]
[334963219,1723680640168,-23.07086458,0.0002388,2]
[334963220,1723680640180,-151.0,0.0002389,7]
[334963222,1723680640190,-151.0,0.0002389,7]
[334963224,1723680640200,-151.0,0.0002398,7]
[334963226,1723680640210,-168.110048,0.0002398,7]
[334963228,1723680640220,-225.21,0.0002398,2]
[334963230,1723680640231,-225.21,0.0002398,2]
[334963232,1723680640241,-151.0,0.0002399,7]
[334963234,1723680640250,-807.45644107,0.0002399,2]
[334963515,1723680643338,-225.21,0.0002398,2]
[334963518,1723680643348,-225.21,0.0002398,2]
[334963522,1723680643359,-225.21,0.0002398,2]
[334963525,1723680643370,-225.21,0.0002398,2]
[334963527,1723680643380,-225.21,0.0002398,2]
[334963529,1723680643390,-225.21,0.0002398,2]
[334963531,1723680643401,-225.21,0.0002398,2]
[334963533,1723680643411,-225.21,0.0002398,2]
[334963535,1723680643422,-4941.85679999,0.0002399,2]
[334963538,1723680643434,-1015.6512274,0.0002399,2]
[334963542,1723680643447,-290.57000001,0.0002399,2]
[334963545,1723680643459,-44197.32277328,0.0002399,2]
[334963549,1723680643472,-1114.98776206,0.0002399,2]
[334963552,1723680643486,-918.3487726,0.0002399,2]
[334963556,1723680643498,-567.63859501,0.0002399,2]
[334963558,1723680643510,-294.36000001,0.0002399,2]
[334963560,1723680643522,-369.12270208,0.0002399,2]
[334963562,1723680643533,-1128.06641355,0.0002399,2]
[334963564,1723680643545,-912.45,0.0002399,2]
[334963566,1723680643557,-35521.77115855,0.0002399,2]
[334963569,1723680643579,-800.00000009,0.00024,12]
[334963572,1723680643592,-349.38708896,0.00024004,2]
[334963574,1723680643603,-153.39,0.0002401,2]
[334963576,1723680643614,-500.0,0.00024024,2]
[334963578,1723680643625,-171.94382277,0.00024095,2]
[334963580,1723680643637,-1527.35636,0.000241,2]
[334963582,1723680643648,-1932.60611324,0.00024134,2]
[334963585,1723680643659,-2025.37714953,0.000242,2]
[334963587,1723680643670,-1000.0,0.000242,2]
[334963589,1723680643681,-495.0,0.000242,7]
[334963591,1723680643696,-190.41,0.000242,2]
[334963593,1723680643706,-193.0,0.000242,7]
[334963595,1723680643716,-206.17922094,0.000242,2]
[334963597,1723680643727,-150.0,0.00024224,2]
[334963599,1723680643738,-150.0,0.00024225,2]
[334963601,1723680643748,-150.0,0.00024235,2]
[334963603,1723680643758,-150.0,0.00024236,2]
[334963605,1723680643769,-500.0,0.00024251,2]
[334963607,1723680643779,-150.0,0.00024252,2]
[334963609,1723680643789,-11734.39550586,0.00024255,2]
[334963612,1723680643800,-262.5936,0.00024259,2]
[334963614,1723680643810,-4403.85479774,0.0002427,4]
[334963616,1723680643820,-207.3158374,0.00024274,2]
[334963618,1723680643830,-500.0,0.00024276,2]
[334963620,1723680643840,-5912.6101796,0.00024278,2]
[334963622,1723680643851,-153.60808193,0.00024278,2]
[334963624,1723680643861,-190.509342,0.0002428,2]
[334963626,1723680643871,-5593.0980998,0.0002428,2]
[334963628,1723680643881,-12476.7755375,0.0002428,2]
[334963630,1723680643892,-497.6264232,0.0002428,2]
[334963632,1723680643902,-500.0,0.00024281,2]
[334963634,1723680643914,-150.0,0.00024282,2]
[334963636,1723680643924,-151.0,0.00024284,7]
[334963638,1723680643936,-163.81581,0.00024284,7]
[334963640,1723680643946,-163.81581,0.00024284,7]
[334963643,1723680643958,-151.0,0.00024284,7]
[334963645,1723680643969,-151.0,0.00024284,7]
[334963647,1723680643980,-151.0,0.00024284,7]
[334963649,1723680643990,-151.0,0.00024284,7]
[334963651,1723680644000,-182.323022,0.00024284,7]
[334963653,1723680644014,-151.0,0.00024284,7]
[334963655,1723680644025,-151.0,0.00024284,7]
[334963658,1723680644035,-151.0,0.00024284,7]
[334963659,1723680644045,-151.0,0.00024284,7]
[334963661,1723680644055,-151.0,0.00024284,7]
[334963664,1723680644066,-151.0,0.00024284,7]
[334963666,1723680644077,-196.653346,0.00024284,7]
[334963668,1723680644087,-172.504722,0.00024284,7]
[334963670,1723680644097,-172.504722,0.00024284,7]
[334963672,1723680644107,-151.0,0.00024284,7]
[334963674,1723680644117,-151.0,0.00024284,7]
[334963676,1723680644127,-151.0,0.00024284,7]
[334963678,1723680644138,-500.0,0.0002429,2]
[334963680,1723680644149,-11009.6369944,0.0002429,4]
[334963682,1723680644159,-1461.93213714,0.00024295,2]
[334963684,1723680644169,-150.0,0.00024297,2]
[334963686,1723680644180,-500.0,0.00024297,2]
[334963688,1723680644191,-70714.00511735,0.000243,5]
[334963860,1723680645952,-421.09,0.00023534,2]
[334963862,1723680645963,-225.21,0.0002398,2]
[334963864,1723680645973,-225.21,0.0002398,2]
[334963866,1723680645987,-225.21,0.0002398,2]
[334963868,1723680645998,-225.21,0.0002398,2]
[334963871,1723680646013,-225.21,0.0002398,2]
[334963873,1723680646024,-225.21,0.0002398,2]
[334963875,1723680646035,-225.21,0.0002398,2]
[334963877,1723680646045,-225.21,0.0002398,2]
[334963879,1723680646057,-225.21,0.0002398,2]
[334963881,1723680646068,-349.38708896,0.00024128,2]
[334963883,1723680646078,-2975.41599265,0.000243,5]
[334963885,1723680646088,-151.0,0.000243,7]
[334963887,1723680646099,-151.0,0.000243,7]
[334963889,1723680646109,-151.0,0.000243,7]
[334963892,1723680646119,-151.0,0.000243,7]
[334963894,1723680646129,-195.285792,0.000243,7]
[334963896,1723680646139,-151.0,0.000243,7]
[334963898,1723680646149,-195.285792,0.000243,7]
[334963900,1723680646159,-287.520744,0.000243,7]
[334963902,1723680646169,-287.520744,0.000243,7]
[334963904,1723680646179,-151.0,0.000243,7]
[334963906,1723680646189,-150.0,0.000243,5]
[334963908,1723680646199,-174.165025,0.000243,7]
[334963910,1723680646209,-4159.984091,0.000243,7]
[334963912,1723680646219,-151.0,0.000243,7]
[334963914,1723680646232,-151.0,0.000243,7]
[334963916,1723680646242,-4159.984091,0.000243,7]
[334963918,1723680646251,-284.313396,0.000243,7]
[334963921,1723680646273,-151.0,0.000243,7]
[334963923,1723680646290,-151.0,0.000243,7]
[334963926,1723680646305,-151.0,0.00024311,7]
[334963928,1723680646319,-163.81581,0.00024311,7]
[334963931,1723680646335,-163.81581,0.00024311,7]
[334963933,1723680646349,-151.0,0.00024311,7]
[334963935,1723680646360,-151.0,0.00024311,7]
[334963938,1723680646372,-151.0,0.00024311,7]
[334963940,1723680646383,-151.0,0.00024311,7]
[334963942,1723680646396,-151.0,0.00024311,7]
[334963945,1723680646409,-151.0,0.00024311,7]
[334963947,1723680646422,-151.0,0.00024311,7]
[334963949,1723680646434,-170.375111,0.00024311,7]
[334963952,1723680646450,-151.0,0.00024311,7]
[334963954,1723680646462,-172.504722,0.00024311,7]
[334963956,1723680646475,-172.504722,0.00024311,7]
[334963959,1723680646495,-150.0,0.00024315,2]
[334963961,1723680646510,-150.0,0.00024318,2]
[334963963,1723680646523,-150.0,0.00024333,2]
[334963966,1723680646537,-500.0,0.00024344,2]
[334963968,1723680646551,-223.07456162,0.00024354,2]
[334963971,1723680646563,-150.0,0.00024359,2]
[334963973,1723680646576,-2201.92739887,0.00024373,4]
[334963975,1723680646588,-500.0,0.00024383,7]